bitfinex/quotes_ETHUSD_20250411
["timestamp","ask_amount","ask_price","bid_price","bid_amount"]
[1744367678290,60.73979,1576.1,1575.3,6.5478]
[1744367678291,6.34532,1576.0,1575.3,6.5478]
[1744367678525,6.3454,1576.0,1575.5,0.2]
[1744367678702,12.69087,1576.0,1575.4,6.61084517]
[1744367678901,54.395,1576.1,1575.5,0.2]
[1744367679118,6.3463,1575.8,1575.4,0.2]
[1744367679513,6.3468,1575.6,1575.5,2.6]
[1744367679901,6.34655,1575.7,1575.2,0.2]
[1744367679902,6.98075,1575.8,1575.2,0.2]
[1744367680105,6.98075,1575.8,1575.3,0.2]
[1744367680308,6.34639,1575.7,1575.3,0.2]
[1744367680508,6.98075,1575.8,1575.3,0.2]
[1744367680795,6.3459,1575.9,1575.4,0.2]
[1744367681023,6.3467,1575.7,1575.2,0.2]
[1744367681199,12.69327,1575.7,1575.3,0.2]
[1744367681404,0.7851,1576.0,1575.3,0.2]
[1744367681600,12.69078,1576.0,1575.4,6.54748]
[1744367681799,19.14322548,1576.0,1575.4,6.54748]
[1744367682129,12.79783548,1576.0,1575.5,0.06346516]
[1744367682328,5.66154056,1576.0,1575.5,0.06346516]
[1744367682535,12.00684056,1576.0,1575.5,0.2]
[1744367682700,54.395,1576.1,1575.6,0.2]
[1744367682895,54.395,1576.1,1575.4,0.2]
[1744367682896,6.34578,1575.9,1575.4,0.2]
[1744367683296,54.395,1576.1,1575.6,6.3464]
[1744367683504,54.395,1576.1,1575.5,0.2]
[1744367683727,11.78488,1576.0,1575.7,0.2]
[1744367683930,60.7398,1576.1,1575.7,0.2]
[1744367684295,6.34533,1576.0,1575.7,0.2]
[1744367684629,6.34572,1575.9,1575.8,2.6]
[1744367684836,6.34693,1575.6,1575.4,0.2]
[1744367685143,12.69377,1575.6,1575.2,0.2]
[1744367685348,7.245104,1575.6,1575.2,0.2]
[1744367685646,7.245104,1575.6,1575.3,0.2]
[1744367686248,13.592154,1575.6,1575.3,0.2]
[1744367686404,6.34725,1575.5,1575.1,0.2634809]
[1744367686606,7.245104,1575.6,1575.3,0.2]
[1744367686846,6.34645,1575.7,1575.3,0.2]
[1744367687144,12.6931,1575.7,1575.3,0.2]
[1744367687443,7.11241,1576.0,1575.5,0.2]
[1744367687444,6.34612,1575.8,1575.5,0.2]
[1744367687614,60.73982,1576.1,1575.5,0.2]
[1744367687816,6.34528,1576.0,1575.6,0.2]
[1744367688032,6.34558,1575.9,1575.8,0.06524914]
[1744367688252,12.419308,1576.0,1575.8,0.06524914]
[1744367688450,6.074028,1576.0,1575.8,0.06524914]
[1744367688617,12.419288,1576.0,1575.8,0.06524914]
[1744367689643,18.764688,1576.0,1575.8,0.06524914]
[1744367689842,6.074028,1576.0,1575.8,0.06524914]
[1744367690006,6.34558,1575.9,1575.8,0.06524914]
[1744367690212,18.764968,1576.0,1575.8,0.06524914]
[1744367690543,8.2220768,1575.9,1575.8,0.06524914]
[1744367690842,60.73981,1576.1,1575.8,0.06524914]
[1744367691043,6.34558,1575.9,1575.8,0.06524914]
[1744367692043,60.73981,1576.1,1575.8,0.06524914]
[1744367692044,60.74008,1576.1,1575.8,0.06524914]
[1744367692253,6.34518,1576.0,1575.8,0.06524914]
[1744367692417,60.73994,1576.1,1575.8,0.06524914]
[1744367692749,6.34518,1576.0,1575.8,0.06524914]
[1744367693116,62.58393891,1576.1,1575.8,0.06524914]
[1744367693117,68.92886891,1576.1,1575.8,0.06524914]
[1744367693321,62.58393891,1576.1,1575.7,0.2]
[1744367693549,68.92888891,1576.1,1575.8,0.89177481]
[1744367693755,15.58863683,1576.0,1575.8,0.34947406]
[1744367693959,0.59463683,1576.0,1575.9,7.09558]
[1744367694113,14.994,1576.6,1576.4,0.2]
[1744367694555,14.994,1576.6,1576.5,0.89046461]
[1744367695059,14.994,1576.6,1576.5,1.09046461]
[1744367695241,15.58829273,1576.6,1576.5,1.09046461]
[1744367696024,23.01445077,1576.6,1576.5,0.89046461]
[1744367696529,16.67169077,1576.6,1576.5,0.89046461]
[1744367696833,16.67169077,1576.6,1576.5,0.34897571]
[1744367696834,15.88321982,1576.6,1576.5,0.34897571]
[1744367697032,6.34367,1576.4,1576.3,0.53955868]
[1744367697611,6.34367,1576.4,1576.2,0.2]
[1744367698155,8.94616709,1576.6,1576.2,0.2]
[1744367698325,6.34342,1576.5,1576.2,0.2]
[1744367698534,6.34371,1576.4,1576.2,0.2]
[1744367698843,6.34371,1576.4,1576.0,1.6765]
[1744367699044,6.34371,1576.4,1576.2,0.2]
[1744367699246,6.34371,1576.4,1576.1,0.42791275]
[1744367699422,6.34411,1576.3,1576.1,0.62791275]
[1744367699620,6.3436,1576.4,1576.1,0.62791275]
[1744367699862,7.76518187,1576.4,1576.1,0.62791275]
[1744367700063,7.76518187,1576.4,1576.1,0.2]
[1744367700750,14.10892187,1576.4,1576.2,0.42803822]
[1744367700945,13.73023782,1576.6,1576.2,0.42803822]
[1744367701131,6.3433,1576.5,1576.2,0.42803822]
[1744367701338,6.34317,1576.5,1576.2,0.42803822]
[1744367702067,7.38733782,1576.6,1576.5,0.2]
[1744367702626,7.38733782,1576.6,1576.5,0.62803822]
[1744367702827,7.38733782,1576.6,1576.5,6.97119822]
[1744367703073,14.581,1577.1,1576.7,0.2]
[1744367703244,14.581,1577.1,1576.9,0.2]
[1744367703575,6.33815,1577.8,1577.3,0.2]
[1744367703727,1.4304,1577.9,1577.3,0.26339095]
[1744367703728,6.3387,1577.7,1577.3,0.26339095]
[1744367703929,27.25573,1578.0,1577.3,0.26339095]
[1744367703930,14.581,1578.0,1577.4,0.55]
[1744367704125,1.4581,1578.0,1577.7,0.2]
[1744367704376,54.396,1578.2,1577.7,0.2]
[1744367704531,6.33757,1577.9,1577.5,0.2]
[1744367704731,6.33732,1578.0,1577.7,0.2]
[1744367705195,6.33755,1577.9,1577.7,0.2]
[1744367705401,12.67466,1578.0,1577.7,0.2]
[1744367705700,6.33719,1578.0,1577.7,0.2]
[1744367705903,6.33851,1577.7,1577.2,0.2]
[1744367706051,6.33914,1577.5,1577.1,0.2]
[1744367706380,14.577,1577.6,1577.5,0.2]
[1744367706799,14.577,1577.6,1577.2,0.2]
[1744367706800,22.37364,1577.6,1577.2,0.2]
[1744367707099,22.37358,1577.6,1577.2,0.2]
[1744367707278,6.33795,1577.8,1577.5,0.2]
[1744367707995,12.67623,1577.8,1577.5,0.2]
[1744367708205,6.33795,1577.8,1577.5,0.2]
[1744367708592,12.67616,1577.8,1577.3,0.2]
[1744367708763,7.605566,1577.8,1577.5,0.2]
[1744367709470,7.605566,1577.8,1577.3,0.2]
[1744367709860,7.605566,1577.8,1577.5,0.2]
[1744367710473,6.33834,1577.7,1577.4,0.2]
[1744367710713,6.33964,1577.4,1577.0,0.2]
[1744367710912,6.33964,1577.4,1577.2,0.2]
[1744367711213,6.33933,1577.5,1577.2,0.2]
[1744367711427,20.91382,1577.6,1576.9,14.14498584]
[1744367711428,14.575,1577.6,1577.4,0.2]
[1744367711612,14.575,1577.6,1576.9,1.3985]
[1744367711613,14.575,1577.6,1577.3,0.2]
[1744367711821,20.91381,1577.6,1577.4,0.2]
[1744367712325,14.575,1577.6,1577.4,0.2]
[1744367713330,68.616,1578.2,1577.7,0.2]
[1744367713622,68.616,1578.2,1578.0,0.2]
[1744367713933,14.22,1578.2,1578.1,0.2]
[1744367714788,14.22,1578.2,1578.1,6.53673]
[1744367715120,14.22,1578.2,1578.1,7.08173]
[1744367715324,0.005,1578.3,1578.1,7.08173]
[1744367715325,0.005,1578.3,1578.2,8.07583]
[1744367715627,0.005,1578.3,1578.2,8.6891766]
[1744367715822,0.005,1578.3,1578.2,8.61206052]
[1744367716032,0.005,1578.3,1578.2,8.07583]
[1744367716316,0.005,1578.3,1578.2,8.13917854]
[1744367716729,0.005,1578.3,1578.2,8.07583]
[1744367716935,0.212466,1578.8,1578.7,0.195]
[1744367717086,1e-05,1579.4,1579.3,8.86041]
[1744367717291,0.05,1581.4,1581.1,0.195]
[1744367717489,6.32431,1581.2,1580.7,0.195]
[1744367717732,0.31421603,1582.4,1582.1,0.195]
[1744367717934,0.05,1582.4,1582.1,6.51571]
[1744367718228,0.05,1582.4,1582.1,7.6511336]
[1744367718229,7.35,1582.4,1582.1,7.6511336]
[1744367718397,7.35,1582.4,1582.0,6.516]
[1744367718598,7.35,1582.4,1581.7,0.195]
[1744367718809,0.05,1582.4,1581.9,0.195]
[1744367719045,0.05,1582.4,1581.8,0.0632192]
[1744367719252,7.3,1582.1,1581.4,0.195]
[1744367719449,7.3,1582.1,1581.6,0.195]
[1744367719450,0.73,1582.0,1581.6,0.195]
[1744367719742,6.32191,1581.8,1581.7,0.30354908]
[1744367720109,7.2,1581.8,1581.6,0.195]
[1744367720442,7.2,1581.8,1581.7,0.195]
[1744367721010,6.32309,1581.6,1581.2,8.90729094]
[1744367721202,0.632309,1581.5,1581.2,8.90729094]
[1744367721543,61.506,1581.8,1581.2,0.195]
[1744367721704,61.506,1581.8,1581.1,6.51942]
[1744367721903,61.506,1581.8,1581.4,0.195]
[1744367722110,6.32249,1581.7,1581.2,0.195]
[1744367722329,0.632249,1581.6,1581.2,0.195]
[1744367722545,0.632249,1581.6,1581.4,0.195]
[1744367722728,54.306,1581.8,1581.1,0.195]
[1744367722914,6.32369,1581.4,1581.1,0.195]
[1744367723244,6.32369,1581.4,1580.8,1.5929]
[1744367723245,1.5113,1581.4,1580.6,0.195]
[1744367723410,9.32547,1581.0,1580.1,0.195]
[1744367723741,6.32662,1580.7,1580.4,0.195]
[1744367723906,6.42671,1580.6,1580.4,0.195]
[1744367724106,6.32716,1580.5,1580.1,0.195]
[1744367724307,61.539057,1580.9,1580.4,0.195]
[1744367724514,54.281,1580.9,1580.8,0.195]
[1744367724727,6.32311,1581.5,1581.1,0.195]
[1744367724927,6.32368,1581.4,1581.1,0.195]
[1744367725126,6.32311,1581.5,1580.5,0.195]
[1744367725127,6.32462,1581.2,1580.5,0.195]
[1744367725326,1.5522,1581.1,1580.5,0.195]
[1744367725533,6.32567,1580.9,1580.5,0.195]
[1744367725733,7.59075,1580.9,1580.6,0.195]
[1744367725940,6.32594,1580.8,1580.7,0.195]
[1744367726256,6.32475,1581.1,1580.8,0.195]
[1744367726558,6.32475,1581.1,1580.3,6.39092697]
[1744367726559,55.79,1581.6,1581.0,0.195]
[1744367726764,55.79,1581.6,1580.4,0.0632499]
[1744367726765,0.1,1581.4,1581.2,0.195]
[1744367727142,0.1,1581.4,1581.1,0.195]
[1744367727458,0.1,1581.4,1581.2,0.195]
[1744367727828,0.1,1581.4,1581.3,0.195]
[1744367728040,0.1,1581.4,1581.3,6.51891]
[1744367728222,0.1,1581.4,1581.3,6.58213647]
[1744367728620,54.281,1581.6,1581.5,0.195]
[1744367728821,12.64176,1582.1,1581.9,0.195]
[1744367729123,6.32205,1581.8,1581.7,0.195]
[1744367729315,0.1,1582.0,1581.8,0.195]
[1744367729514,0.441228,1582.2,1581.9,0.195]
[1744367729719,6.761688,1582.2,1582.0,0.195]
[1744367730072,6.761708,1582.2,1581.8,0.195]
[1744367730368,6.32216,1581.8,1581.7,0.195]
[1744367730668,12.6444,1581.8,1581.7,0.195]
[1744367730845,6.42216,1581.8,1581.7,0.195]
[1744367731161,0.1,1581.8,1581.7,0.195]
[1744367731460,0.1,1581.8,1581.4,7.78396]
[1744367731461,6.32111,1582.0,1581.9,0.195]
[1744367731660,6.32231,1581.7,1581.6,0.195]
[1744367731862,6.32304,1581.6,1581.5,0.195]
[1744367732158,6.42236,1581.7,1581.3,0.195]
[1744367732159,6.32331,1581.5,1581.3,0.195]
[1744367732320,6.32285,1581.6,1581.5,0.195]
[1744367732521,60.57095,1582.1,1581.5,0.195]
[1744367732522,54.25,1582.1,1581.8,0.195]
[1744367732861,6.32231,1581.7,1581.3,0.195]
[1744367733064,6.32151,1581.9,1581.4,0.195]
[1744367733222,60.57095,1582.1,1581.9,0.195]
[1744367733422,6.32111,1582.0,1581.9,0.195]
[1744367733627,0.1,1582.0,1581.9,0.195]
[1744367733961,6.3219,1581.9,1581.8,0.195]
[1744367734126,12.64409,1581.8,1581.6,0.195]
[1744367734331,12.64409,1581.8,1581.7,0.195]
[1744367734726,6.32283,1581.6,1581.1,14.23545]
[1744367734967,6.32283,1581.6,1581.5,0.195]
[1744367735568,0.1,1581.8,1581.7,0.195]
[1744367735865,6.761578,1582.2,1582.0,0.195]
[1744367735866,0.441228,1582.2,1582.0,0.195]
[1744367736068,60.57071,1582.1,1582.0,0.195]
[1744367736274,6.32111,1582.0,1581.9,0.195]
[1744367737340,6.42071,1582.1,1581.9,0.195]
[1744367737546,6.761538,1582.2,1582.1,0.195]
[1744367737766,6.32071,1582.1,1581.9,0.195]
[1744367737950,6.42111,1582.0,1581.9,0.195]
[1744367738149,6.42111,1582.0,1581.9,0.32665604]
[1744367738536,0.1,1582.0,1581.9,0.32665604]
[1744367738771,6.42111,1582.0,1581.9,0.195]
[1744367738959,6.42111,1582.0,1581.5,6.38628407]
[1744367738960,6.32087,1582.1,1582.0,0.195]
[1744367739267,13.082088,1582.2,1582.0,0.195]
[1744367739472,6.761628,1582.2,1582.1,0.195]
[1744367739830,13.21407348,1582.2,1582.1,0.32523165]
[1744367740035,6.32311,1581.5,1580.4,1.4456]
[1744367740282,6.32529,1581.0,1580.5,12.65422]
[1744367740436,6.32477,1581.1,1580.6,6.32666]
[1744367740780,6.32567,1580.9,1580.7,0.51640791]
[1744367740937,60.54179,1581.4,1580.8,0.0632555]
[1744367741140,6.32549,1581.0,1580.7,0.06324631]
[1744367741474,6.32531,1581.0,1580.8,0.51824169]
[1744367741703,12.64898,1581.2,1580.8,0.51824169]
[1744367741913,6.32482,1581.1,1580.9,0.51824169]
[1744367742208,6.32511,1581.0,1580.9,0.51824169]
[1744367742373,6.32393,1581.3,1580.4,7.77309]
[1744367742573,6.32523,1581.0,1580.5,6.39006563]
[1744367742802,6.32564,1580.9,1580.5,0.06325563]
[1744367742991,6.32628,1580.8,1580.6,0.92762941]
[1744367743177,6.32524,1581.0,1580.6,0.92762941]
[1744367743378,54.218,1581.4,1581.0,6.32478]
[1744367743576,54.218,1581.4,1581.1,6.32468]
[1744367743806,54.218,1581.4,1581.0,6.32478]
[1744367743807,6.32391,1581.3,1580.8,10.76969]
[1744367744008,54.218,1581.4,1581.2,0.518445]
[1744367744207,54.218,1581.4,1581.3,0.40918441]
[1744367744413,0.441228,1582.2,1581.4,4.6766]
[1744367744712,8e-06,1582.4,1582.3,6.86991]
[1744367744871,0.055,1583.4,1582.8,5.0556]
[1744367745072,0.055,1583.4,1582.8,11.891955]
[1744367745268,6.3709,1583.4,1582.8,2.024045]
[1744367745504,6.31606,1583.3,1582.8,2.43322941]
[1744367745710,6.3167,1583.2,1582.8,1.70744641]
[1744367745913,6.32855978,1583.0,1582.8,0.92762941]
[1744367746082,6.95037698,1582.9,1582.8,0.92762941]
[1744367746289,6.31912,1582.5,1581.1,6.32454]
[1744367746495,6.32166,1581.9,1581.1,6.32467]
[1744367746693,0.632166,1581.8,1581.2,0.46952336]
[1744367746891,6.32175,1581.9,1581.2,0.46952336]
[1744367747215,6.32316,1581.5,1581.2,0.34153062]
[1744367747412,54.221,1581.6,1581.3,0.12727985]
[1744367747708,6.32416,1581.3,1581.0,0.34153062]
[1744367748095,6.32434,1581.2,1581.0,0.34153062]
[1744367748317,54.221,1581.6,1580.7,6.32631]
[1744367748520,54.221,1581.6,1580.6,0.34153062]
[1744367748812,6.32431,1581.2,1580.7,1.69945852]
[1744367748971,6.32475,1581.1,1580.7,1.69945852]
[1744367749175,12.64981,1581.1,1580.7,1.69945852]
[1744367749514,54.221,1581.6,1580.7,1.69945852]
[1744367749515,60.54371,1581.6,1580.7,1.69945852]
[1744367749714,6.32351,1581.4,1580.7,1.69945852]
[1744367749916,6.32567,1580.9,1580.3,1.5802]
[1744367750100,6.32579,1580.9,1580.4,0.34234161]
[1744367750414,6.32517,1581.0,1580.5,0.06325429]
[1744367750712,6.32386,1581.4,1580.6,0.13227194]
[1744367751009,6.32597,1580.8,1580.3,1.5802]
[1744367751314,6.32711,1580.5,1580.4,0.13369907]
[1744367751477,6.32672,1580.6,1580.4,0.13369907]
[1744367751877,6.32711,1580.5,1580.4,0.13369907]
[1744367752114,60.54704,1580.8,1580.4,0.13369907]
[1744367752314,54.221,1580.8,1580.5,0.06325853]
[1744367752484,54.221,1580.8,1580.6,0.06325515]
[1744367752826,6.32631,1580.7,1580.6,0.12225369]
[1744367753118,6.32631,1580.7,1580.3,1.5802]
[1744367753410,6.32671,1580.6,1580.4,0.12204813]
[1744367753596,6.32671,1580.6,1580.4,0.18531194]
[1744367753801,6.32671,1580.6,1580.4,0.12204813]
[1744367754000,6.32711,1580.5,1580.4,0.12204813]
[1744367754208,6.32671,1580.6,1580.4,0.12204813]
[1744367754404,12.65364,1580.6,1580.4,0.12204813]
[1744367754608,6.32638,1580.7,1580.4,0.12204813]
[1744367754783,12.65298,1580.7,1580.5,0.06326668]
[1744367754988,12.65298,1580.7,1580.6,0.12062121]
[1744367755418,54.221,1580.8,1580.4,0.06326391]
[1744367755591,60.54706,1580.8,1580.5,0.12133462]
[1744367755791,66.87321,1580.8,1580.5,0.12133462]
[1744367756019,6.32632,1580.7,1580.3,7.90806]
[1744367756234,6.32632,1580.7,1580.4,0.12204813]
[1744367756530,6.32711,1580.5,1580.4,0.12204813]
[1744367756898,6.3288,1580.1,1579.9,1.5323]
[1744367757197,12.6594,1579.9,1579.5,1.5323]
[1744367757414,6.32969,1579.9,1579.5,1.5323]
[1744367757594,6.3292,1580.0,1579.5,7.86324]
[1744367757919,6.3292,1580.0,1579.6,6.33053]
[1744367758531,6.3292,1580.0,1579.7,0.40692245]
[1744367758728,12.65772,1580.1,1579.7,0.40692245]
[1744367759228,12.65772,1580.1,1579.8,0.40692245]
[1744367759924,6.32911,1580.0,1579.8,0.40692245]
[1744367760284,6.32911,1580.0,1579.5,2.0823]
[1744367760285,6.32871,1580.1,1579.5,4.5323]
[1744367760488,6.33013,1579.8,1579.5,1.5323]
[1744367760690,6.33035,1579.7,1579.3,6.3318]
[1744367760989,6.33056,1579.7,1579.3,6.33188]
[1744367761190,14.943,1579.8,1579.4,0.06330506]
[1744367761429,6.33087,1579.6,1579.4,0.40656122]
[1744367761593,6.33032,1579.7,1579.4,0.40656122]
[1744367762015,6.33111,1579.5,1579.4,0.40656122]
[1744367762228,6.33111,1579.5,1579.3,0.40656122]
[1744367762931,6.33151,1579.4,1579.1,0.40656122]
[1744367763157,6.33073,1579.6,1579.1,0.40656122]
[1744367763332,6.33232,1579.2,1579.1,0.40656122]
[1744367763631,6.33272,1579.1,1578.8,1.6156]
[1744367763811,6.33232,1579.2,1578.9,6.33328]
[1744367763812,14.946,1579.2,1578.9,6.33328]
[1744367764198,14.946,1579.2,1579.0,6.33277]
[1744367764400,14.946,1579.2,1578.8,8.49922]
[1744367764401,14.946,1579.2,1578.9,6.33348]
[1744367765030,14.946,1579.2,1578.9,6.33335]
[1744367765225,14.946,1579.2,1578.9,12.66672]
[1744367765429,14.946,1579.2,1579.0,0.40588511]
[1744367766198,14.946,1579.2,1578.9,6.33335]
[1744367766635,14.946,1579.2,1578.9,12.66671]
[1744367766831,14.946,1579.2,1579.0,6.333]
[1744367767197,21.27841,1579.2,1578.8,1.6156]
[1744367767436,14.946,1579.2,1578.9,6.3335]
[1744367768036,14.946,1579.2,1578.9,12.66686]
[1744367768336,14.946,1579.2,1578.9,6.33336]
[1744367768542,14.946,1579.2,1578.8,1.6156]
[1744367768703,14.946,1579.2,1579.0,6.33294]
[1744367768904,14.946,1579.2,1578.9,12.66704]
[1744367769215,14.946,1579.2,1578.9,6.33352]
[1744367769419,14.946,1579.2,1579.0,3.0]
[1744367769610,50.0,1580.0,1579.4,1.6214]
[1744367769796,6.32963,1579.9,1579.5,6.33098]
[1744367770002,50.0,1580.0,1579.7,6.3302]
[1744367770196,62.65876,1580.0,1579.6,6.45489003]
[1744367770432,6.32962,1579.9,1579.6,0.12429003]
[1744367770610,62.78164548,1580.0,1579.4,1.6214]
[1744367770611,62.78165548,1580.0,1579.4,1.6214]
[1744367770809,62.65848,1580.0,1579.6,6.33037]
[1744367771112,6.32956,1579.9,1579.7,0.12343944]
[1744367771543,6.32956,1579.9,1579.5,13.60662889]
[1744367771722,6.32954,1579.9,1579.5,0.94458889]
[1744367772039,6.32959,1579.9,1579.5,7.27567889]
[1744367772247,6.32991,1579.8,1579.5,7.27567889]
[1744367772401,6.32991,1579.8,1579.6,0.12378723]
[1744367772600,50.0,1580.0,1579.6,0.12378723]
[1744367772905,50.0,1580.0,1579.5,0.94458889]
[1744367773126,6.33007,1579.8,1579.5,0.94458889]
[1744367773296,56.32935,1580.0,1579.6,6.39383019]
[1744367773498,56.32935,1580.0,1579.6,12.72442019]
[1744367773698,56.32935,1580.0,1579.7,6.45335278]
[1744367774244,6.32962,1579.9,1579.7,0.12307278]
[1744367774533,12.65997,1579.8,1579.5,0.94458889]
[1744367774739,6.32991,1579.8,1579.5,0.94458889]
[1744367775039,6.33033,1579.7,1579.6,2.6]
[1744367775236,6.33033,1579.7,1579.6,2.72378723]
[1744367775436,7.596354,1579.7,1579.6,2.6]
[1744367775739,9.176654,1579.7,1579.6,2.6]
[1744367776540,6.33071,1579.6,1579.5,0.94458889]
[1744367781217,6.33071,1579.6,1579.5,8.89e-06]
[1744367781424,8.387895,1579.6,1579.5,8.89e-06]
[1744367783016,15.151895,1579.6,1579.5,8.89e-06]
[1744367783519,19.704695,1579.6,1579.5,8.89e-06]
[1744367783723,6.33432,1578.7,1578.6,0.40915575]
[1744367783937,6.967752,1578.7,1578.6,0.40915575]
[1744367784134,6.967752,1578.7,1578.6,8.53e-06]
[1744367784335,6.33593,1578.3,1578.2,0.0736]
[1744367784633,6.43593,1578.3,1578.2,0.19907534]
[1744367784839,0.1,1578.3,1578.2,0.19907534]
[1744367785014,7.16588534,1578.3,1578.2,0.0736]
[1744367785214,7.16588534,1578.3,1578.2,1e-05]
[1744367785954,6.33753,1577.9,1577.8,0.2700058]
[1744367786330,20.22931,1578.0,1577.8,0.2700058]
[1744367786560,6.33753,1577.9,1577.8,0.2700058]
[1744367787060,6.43753,1577.9,1577.8,0.2700058]
[1744367787445,9.104214,1577.9,1577.8,0.2700058]
[1744367787629,6.43753,1577.9,1577.8,0.2700058]
[1744367787830,0.1,1577.9,1577.8,0.2700058]
[1744367788049,6.43753,1577.9,1577.8,0.2700058]
[1744367788252,6.43753,1577.9,1577.8,0.39083149]
[1744367789324,6.43753,1577.9,1577.8,0.2700058]
[1744367789526,9.104214,1577.9,1577.8,0.2700058]
[1744367789861,4.344784,1577.9,1576.8,1.5505]
[1744367790161,4.344784,1577.9,1576.9,12.68286]
[1744367790162,6.34016,1577.3,1576.9,12.68286]
[1744367790454,13.899,1577.4,1577.1,6.34055]
[1744367790658,13.899,1577.4,1577.1,12.68114]
[1744367790830,0.1,1577.3,1577.1,6.34055]
[1744367791031,0.1,1577.3,1576.2,1.5691]
[1744367791224,0.1,1577.3,1576.8,7.91098]
[1744367791425,6.44009,1577.3,1576.9,6.40481844]
[1744367791759,6.44009,1577.3,1576.9,6.34139]
[1744367791920,6.44013,1577.3,1576.9,6.34137]
[1744367792121,6.55244548,1577.3,1576.9,0.06340765]
[1744367792321,6.44007,1577.3,1576.9,6.34138]
[1744367792561,6.34052,1577.2,1576.8,1.5691]
[1744367792745,6.3408,1577.1,1576.8,1.5691]
[1744367792954,6.3408,1577.1,1576.8,7.91097]
[1744367793162,0.1,1577.0,1576.8,1.5691]
[1744367793663,0.1,1577.0,1576.9,6.34155]
[1744367794265,0.1,1577.0,1576.8,7.91098]
[1744367794563,6.44128,1577.0,1576.6,12.68544]
[1744367794764,6.44128,1577.0,1576.7,6.3423]
[1744367794931,6.44128,1577.0,1576.7,0.14186659]
[1744367794932,0.1,1577.0,1576.7,0.14186659]
[1744367795139,0.1,1577.0,1576.9,6.34155]
[1744367795452,6.44115,1577.0,1576.9,0.12463799]
[1744367795638,6.34157,1576.9,1576.6,0.06342117]
[1744367795839,6.34157,1576.9,1576.7,0.12607258]
[1744367796039,6.34157,1576.9,1576.5,7.85359]
[1744367796347,6.34236,1576.7,1576.6,0.12679001]
[1744367796728,6.34282,1576.6,1576.3,0.06342726]
[1744367796927,6.34318,1576.5,1576.2,6.34427]
[1744367797128,12.68594,1576.6,1576.2,6.34423]
[1744367797329,13.558,1576.8,1576.5,6.34289]
[1744367797866,13.558,1576.8,1576.3,6.34376]
[1744367798084,19.90007,1576.8,1576.4,6.34336]
[1744367798388,6.34314,1576.6,1576.1,0.4176017]
[1744367798685,13.558,1576.8,1576.1,1.9983017]
[1744367798686,6.34252,1576.7,1576.1,1.9983017]
[1744367798890,13.558,1576.8,1576.2,6.34432]
[1744367799180,19.90009,1576.8,1576.5,6.343]
[1744367799368,13.558,1576.8,1576.5,6.343]
[1744367799567,13.558,1576.8,1576.2,7.81305717]
[1744367799781,13.558,1576.8,1576.7,6.34236]
[1744367799978,13.558,1576.8,1576.6,6.34257]
[1744367800282,19.9001,1576.8,1576.4,6.34349]
[1744367800483,12.68508,1576.7,1576.3,9.34375]
[1744367800784,6.34248,1576.7,1576.3,15.75101757]
[1744367800986,12.68507,1576.7,1576.3,15.68759]
[1744367801281,12.68507,1576.7,1576.1,8.3430517]
[1744367801282,12.68613,1576.6,1576.2,6.34425]
[1744367801589,12.68613,1576.6,1576.2,6.34422]
[1744367801881,12.68613,1576.6,1576.2,12.68845]
[1744367802584,13.558,1576.8,1576.6,6.34269]
[1744367803796,0.1,1577.0,1576.5,6.34316]
[1744367803961,0.1,1577.0,1576.8,6.34195]
[1744367804162,0.1,1577.0,1576.6,6.34264]
[1744367804163,6.44144,1577.0,1576.6,6.34264]
[1744367804376,6.44144,1577.0,1576.6,12.68527]
[1744367804695,6.44144,1577.0,1576.7,6.34233]
[1744367804880,6.44144,1577.0,1576.7,6.34221]
[1744367805081,6.34196,1576.8,1576.5,6.34299]
[1744367805298,25.8726,1576.9,1576.5,12.686]
[1744367805496,25.87239,1576.9,1576.5,12.686]
[1744367805702,25.87239,1576.9,1576.5,12.68603]
[1744367805703,6.34199,1576.8,1576.5,12.68603]
[1744367805903,19.53065,1576.9,1576.5,6.34299]
[1744367806195,6.34195,1576.8,1576.5,6.34299]
[1744367806396,6.34195,1576.8,1576.1,2.6296017]
[1744367806397,6.34289,1576.6,1576.3,6.34387]
[1744367806599,6.34289,1576.6,1576.1,0.4176017]
[1744367806600,1.6473,1576.6,1576.1,0.4176017]
[1744367806900,6.34437,1576.2,1576.1,0.4176017]
[1744367807068,19.53337,1576.2,1576.1,0.4176017]
[1744367808204,22.755539,1576.2,1576.1,0.4176017]
[1744367808603,22.855539,1576.2,1576.1,0.4176017]
[1744367809800,24.453939,1576.2,1576.1,0.4176017]
[1744367810309,13.289,1576.2,1576.1,0.4176017]
[1744367810821,19.63337,1576.2,1576.1,0.4176017]
[1744367813782,19.63337,1576.2,1576.1,0.54473099]
[1744367813984,19.63337,1576.2,1576.1,0.4176017]
[1744367814215,19.63337,1576.2,1576.1,0.54473099]
[1744367814416,19.63337,1576.2,1576.1,0.4176017]
[1744367814821,13.289,1576.2,1576.1,0.4176017]
[1744367814997,13.289,1576.2,1576.1,6.88950099]
[1744367815192,13.289,1576.2,1576.1,7.29061654]
[1744367816222,13.289,1576.2,1576.1,0.94584654]
[1744367816403,22.231087,1576.2,1576.1,0.94584654]
[1744367816744,22.231087,1576.2,1576.1,0.94978641]
[1744367817386,22.231087,1576.2,1576.1,0.4176017]
[1744367820030,23.809287,1576.2,1576.1,0.4176017]